bitfinex/quotes_BTCUSD_20250127
["timestamp","ask_amount","ask_price","bid_price","bid_amount"]
[1737967519499,0.51191346,98798.0,98797.0,0.51065346]
[1737967519916,0.40850117,98798.0,98797.0,0.83044246]
[1737967520141,0.11613983,98798.0,98797.0,0.86044246]
[1737967520340,0.5341,98826.0,98825.0,0.253083]
[1737967520583,0.5341,98857.0,98856.0,0.151735]
[1737967520777,1.1758,98859.0,98826.0,0.15]
[1737967520778,0.5341,98858.0,98854.0,0.151737]
[1737967520979,0.50578,98857.0,98845.0,0.01364]
[1737967521190,0.60312729,98857.0,98845.0,0.01364]
[1737967521336,0.151751,98846.0,98845.0,0.01364]
[1737967521551,0.60312729,98846.0,98845.0,0.01364]
[1737967521750,0.75487829,98846.0,98845.0,0.01364]
[1737967521961,0.60312729,98846.0,98845.0,0.01378869]
[1737967522179,0.77366389,98846.0,98845.0,0.01378869]
[1737967523046,0.77466389,98846.0,98845.0,0.01378869]
[1737967523592,0.62391289,98846.0,98845.0,0.01378869]
[1737967523968,0.5265656,98846.0,98845.0,0.16554069]
[1737967524167,0.5275656,98846.0,98845.0,0.16554069]
[1737967525143,1.04088,98846.0,98845.0,0.16554069]
[1737967525708,1.03988,98846.0,98845.0,0.16554069]
[1737967526214,1.04288,98846.0,98845.0,0.16554069]
[1737967526705,1.03988,98846.0,98845.0,0.16554069]
[1737967527210,1.04088,98846.0,98845.0,0.16554069]
[1737967528191,1.03988,98846.0,98845.0,0.16554069]
[1737967529544,1.04088,98846.0,98845.0,0.43588798]
[1737967529955,1.03988,98846.0,98845.0,0.45576467]
[1737967530381,1.04088,98846.0,98845.0,0.45576467]
[1737967530804,1.03988,98846.0,98845.0,0.45576467]
[1737967531008,1.03988,98846.0,98845.0,0.46576467]
[1737967531009,0.50578,98846.0,98845.0,0.46576467]
[1737967531218,0.50578,98846.0,98845.0,0.54136467]
[1737967531425,0.50578,98846.0,98845.0,0.57279999]
[1737967532572,0.30543789,98846.0,98845.0,1.36706967]
[1737967532791,0.09808996,98846.0,98845.0,2.30545567]
[1737967533025,0.00029736,98870.0,98869.0,0.311715]
[1737967533242,0.00029758,98892.0,98890.0,0.301683]
[1737967533450,0.00029758,98892.0,98890.0,0.39903029]
[1737967534494,0.00029758,98892.0,98890.0,0.40103029]
[1737967535118,5.8e-07,98891.0,98890.0,0.74068729]
[1737967535343,0.04076036,98913.0,98912.0,0.301649]
[1737967535548,0.00079328,98913.0,98912.0,0.41259629]
[1737967535754,0.00079328,98913.0,98912.0,0.315249]
[1737967537199,0.00170274,98913.0,98912.0,0.315249]
[1737967537618,0.00270274,98913.0,98912.0,0.41259629]
[1737967538034,0.00270274,98913.0,98912.0,0.42266034]
[1737967538234,0.00170274,98913.0,98912.0,0.32531305]
[1737967538646,0.00170274,98913.0,98912.0,0.15]
[1737967538861,0.0464,98911.0,98903.0,0.202217]
[1737967539073,0.0464,98911.0,98905.0,0.0136]
[1737967539287,0.151658,98907.0,98905.0,0.0136]
[1737967539491,0.0464,98911.0,98905.0,0.0136]
[1737967539692,0.0464,98911.0,98910.0,0.151653]
[1737967539910,0.0464,98911.0,98905.0,0.0136]
[1737967540533,0.198052,98911.0,98905.0,0.0146]
[1737967540727,0.198052,98911.0,98905.0,0.0136]
[1737967540954,0.151657,98907.0,98905.0,0.0136]
[1737967541166,0.0464,98911.0,98905.0,0.0136]
[1737967541382,0.0464,98911.0,98910.0,0.151653]
[1737967541593,0.53461438,98913.0,98912.0,0.151649]
[1737967541808,0.00070274,98913.0,98912.0,0.24899629]
[1737967542446,0.00070274,98913.0,98912.0,0.90168633]
[1737967542875,0.00070274,98913.0,98912.0,0.91168633]
[1737967543082,0.00170274,98913.0,98912.0,0.90168633]
[1737967543282,0.00170274,98913.0,98912.0,0.91168633]
[1737967543491,0.00170274,98913.0,98912.0,0.90368633]
[1737967543703,0.00270274,98913.0,98912.0,0.90368633]
[1737967544334,0.00270274,98913.0,98912.0,0.90668633]
[1737967544752,0.53391164,98932.0,98931.0,0.15162]
[1737967544970,0.53391164,98932.0,98931.0,0.42922031]
[1737967545380,0.53391164,98932.0,98931.0,0.45364901]
[1737967545595,0.53391164,98932.0,98931.0,0.42922031]
[1737967546017,0.53391164,98932.0,98931.0,0.4721723]
[1737967546253,0.53391164,98932.0,98931.0,0.4831723]
[1737967546470,0.53391164,98932.0,98931.0,0.4821723]
[1737967546939,0.53491164,98932.0,98931.0,0.47338939]
[1737967547146,0.53391164,98932.0,98931.0,0.45938939]
[1737967547369,0.53391164,98932.0,98931.0,0.42913637]
[1737967547575,0.53391164,98932.0,98931.0,0.4226065]
[1737967547749,0.53391164,98932.0,98931.0,0.4090465]
[1737967547942,0.53391164,98932.0,98931.0,0.4256065]
[1737967548913,0.00044604,98933.0,98932.0,0.301619]
[1737967549135,0.00044604,98933.0,98932.0,0.39896629]
[1737967550123,0.00144604,98933.0,98932.0,0.40596629]
[1737967550354,0.00144604,98933.0,98932.0,0.39896629]
[1737967550689,0.00144604,98933.0,98932.0,0.40296629]
[1737967550836,0.00144604,98933.0,98932.0,0.42296629]
[1737967551038,0.00144604,98933.0,98932.0,0.42196629]
[1737967551468,0.0001414,98944.0,98943.0,0.301602]
[1737967551666,0.0001414,98944.0,98943.0,0.90163933]
[1737967551841,0.0001414,98944.0,98943.0,0.92450145]
[1737967552293,0.0001414,98944.0,98943.0,0.95475447]
[1737967552493,0.0001414,98944.0,98943.0,0.93189235]
[1737967552911,0.0001414,98944.0,98943.0,0.41250929]
[1737967553116,0.0001414,98944.0,98943.0,0.91519933]
[1737967553523,0.0011414,98944.0,98943.0,0.42150929]
[1737967553887,0.0001414,98944.0,98943.0,0.41250929]
[1737967554085,0.0001414,98944.0,98943.0,0.41550929]
[1737967554297,0.0001414,98944.0,98943.0,0.43556323]
[1737967554514,0.0001414,98944.0,98943.0,0.44570345]
[1737967554716,0.0001414,98944.0,98943.0,0.44270345]
[1737967554975,0.0001414,98944.0,98943.0,0.44570345]
[1737967555157,0.0011414,98944.0,98943.0,0.33730222]
[1737967555366,0.53505304,98944.0,98943.0,0.18730222]
[1737967555536,0.53405304,98944.0,98943.0,0.17830222]
[1737967555741,0.53505304,98944.0,98943.0,0.18530222]
[1737967556237,0.53405304,98944.0,98943.0,0.17530222]
[1737967556440,0.53505304,98944.0,98943.0,0.18130222]
[1737967556640,0.53405304,98944.0,98943.0,0.17830222]
[1737967557092,0.53505304,98944.0,98943.0,0.18130222]
[1737967557433,0.53505304,98944.0,98943.0,0.18330222]
[1737967558269,0.58005304,98944.0,98943.0,0.008]
[1737967558500,0.58005304,98944.0,98943.0,0.159602]
[1737967559358,0.57905304,98944.0,98943.0,0.153602]
[1737967560023,0.53405304,98944.0,98943.0,0.153602]
[1737967560291,0.53405304,98944.0,98943.0,0.151602]
[1737967560568,0.53405304,98944.0,98943.0,0.002]
[1737967560954,0.53405304,98944.0,98940.0,0.15]
[1737967561194,0.53405304,98944.0,98943.0,0.151602]
[1737967561633,0.1208,98943.0,98910.0,0.22491777]
[1737967561870,0.0758,98929.0,98918.0,0.202186]
[1737967562074,0.15163,98925.0,98917.0,0.01352]
[1737967562276,0.202169,98927.0,98917.0,0.01352]
[1737967562479,0.06376786,98928.0,98917.0,0.01352]
[1737967562691,0.15164,98918.0,98917.0,0.00014868]
[1737967562892,0.36978729,98918.0,98917.0,0.00014868]
[1737967563774,0.38855515,98918.0,98917.0,0.00014868]
[1737967564118,0.38855515,98918.0,98917.0,0.00114868]
[1737967564337,0.38855515,98918.0,98890.0,0.0009814]
[1737967564338,0.151682,98891.0,98890.0,0.0009814]
[1737967564548,0.1208,98891.0,98890.0,0.0009814]
[1737967564753,0.13956786,98891.0,98879.0,0.15]
[1737967564957,0.202249,98888.0,98875.0,0.15]
[1737967565162,0.202249,98888.0,98871.0,0.0009862]
[1737967565163,0.53391164,98890.0,98871.0,0.0009862]
[1737967565376,0.09734729,98887.0,98871.0,0.0009862]
[1737967565601,0.202253,98886.0,98871.0,0.0009862]
[1737967565824,0.0758,98877.0,98871.0,0.0009862]
[1737967566064,0.151711,98872.0,98871.0,0.0009862]
[1737967566237,0.151726,98863.0,98853.0,0.16526]
[1737967566445,0.5341,98862.0,98854.0,0.202318]
[1737967566655,0.5341,98862.0,98861.0,0.151728]
[1737967566868,0.5341,98862.0,98861.0,0.301728]
[1737967567697,0.151728,98861.0,98853.0,0.00749592]
[1737967567917,0.15173,98860.0,98853.0,0.00749592]
[1737967568153,0.5341,98860.0,98853.0,0.00749592]
[1737967568335,0.5341,98860.0,98856.0,0.15]
[1737967568536,0.151731,98859.0,98856.0,0.15]
[1737967568846,0.5341,98860.0,98856.0,0.15]
[1737967569057,0.5341,98860.0,98853.0,0.15949592]
[1737967569277,0.5341,98860.0,98859.0,0.301731]
[1737967569517,0.5341,98860.0,98859.0,0.15]
[1737967569873,0.5341,98860.0,98859.0,0.301731]
[1737967570366,0.5341,98860.0,98859.0,0.15]
[1737967570578,0.5341,98860.0,98859.0,0.153]
[1737967570753,0.5341,98860.0,98859.0,0.304731]
[1737967571966,0.5341,98860.0,98859.0,0.153]
[1737967572174,0.36987629,98860.0,98859.0,0.004]
[1737967572801,0.38004911,98860.0,98859.0,0.004]
[1737967573271,0.36987629,98860.0,98859.0,0.001]
[1737967573471,0.36987629,98860.0,98853.0,0.00049592]
[1737967573472,0.151738,98854.0,98853.0,0.00049592]
[1737967573673,0.24908529,98854.0,98853.0,0.00049592]
[1737967574126,0.1258,98860.0,98853.0,0.00049592]
[1737967574332,0.1238,98860.0,98853.0,0.00049592]
[1737967574784,0.001,98854.0,98853.0,0.00049592]
[1737967575187,0.151731,98859.0,98853.0,0.00049592]
[1737967575384,0.151734,98858.0,98853.0,0.00049592]
[1737967575586,0.1238,98860.0,98853.0,0.00049592]
[1737967575788,0.1238,98860.0,98858.0,0.151731]
[1737967576176,0.1238,98860.0,98859.0,0.151731]
[1737967576848,0.1238,98860.0,98856.0,0.151735]
[1737967577080,0.1208,98860.0,98859.0,0.151731]
[1737967577278,0.5341,98870.0,98853.0,0.00049592]
[1737967577279,0.5341,98870.0,98869.0,0.151715]
[1737967577495,0.8549,98872.0,98871.0,0.301712]
[1737967577640,0.049,98889.0,98888.0,0.151686]
[1737967577850,0.049,98889.0,98888.0,0.315206]
[1737967578302,0.3208,98919.0,98888.0,0.315206]
[1737967578303,0.049,98917.0,98909.0,0.15]
[1737967578671,0.049,98917.0,98916.0,0.301643]
[1737967578990,0.3208,98919.0,98918.0,0.30164]
[1737967579387,0.202189,98917.0,98888.0,0.11086729]
[1737967579594,0.1312,98915.0,98893.0,0.151678]
[1737967579997,0.151671,98898.0,98889.0,0.15]
[1737967580212,0.24901829,98898.0,98888.0,0.01352]
[1737967580411,0.09734729,98898.0,98888.0,0.01352]
[1737967580563,0.56982029,98897.0,98890.0,0.151683]
[1737967580779,0.56982029,98897.0,98888.0,0.01352]
[1737967580780,0.151683,98891.0,98888.0,0.01352]
[1737967580973,0.41814729,98897.0,98888.0,0.01352]
[1737967581131,0.3208,98897.0,98888.0,0.01352]
[1737967581336,0.151675,98896.0,98888.0,0.01352]
[1737967581546,0.3208,98897.0,98889.0,0.202246]
[1737967581753,0.3218,98897.0,98888.0,0.01352]
[1737967581959,0.3218,98897.0,98894.0,0.151677]
[1737967582161,0.3218,98897.0,98888.0,0.01352]
[1737967582162,0.3218,98897.0,98888.0,0.01381715]
[1737967582670,0.151676,98895.0,98888.0,0.16550315]
[1737967582871,0.3218,98897.0,98888.0,0.01381715]
[1737967583117,0.151681,98892.0,98888.0,0.01381715]
[1737967583337,0.202232,98896.0,98888.0,0.01381715]
[1737967583570,0.151678,98894.0,98888.0,0.01381715]
[1737967583855,0.202232,98896.0,98888.0,0.01381715]
[1737967584063,0.3208,98897.0,98888.0,0.01381715]
[1737967584269,0.472473,98897.0,98889.0,0.151684]
[1737967584495,0.3208,98897.0,98889.0,0.202246]
[1737967584698,0.5341,98896.0,98888.0,0.01381715]
[1737967584903,0.5341,98896.0,98895.0,0.301676]
[1737967585794,0.5341,98896.0,98895.0,0.15]
[1737967586001,0.5341,98896.0,98888.0,0.01381715]
[1737967586002,0.151685,98889.0,98888.0,0.00029715]
[1737967586956,1.10393229,98889.0,98888.0,0.00029715]
[1737967587204,1.23363229,98889.0,98888.0,0.00029715]
[1737967587483,1.23363229,98889.0,98888.0,0.00079307]
[1737967587738,1.73925229,98889.0,98888.0,0.00079307]
[1737967588506,1.73925229,98889.0,98888.0,0.00179307]
[1737967588784,1.77973229,98889.0,98888.0,0.00079307]
[1737967589044,1.78173229,98889.0,98888.0,0.00079307]
[1737967589800,1.77973229,98889.0,98888.0,0.00079307]
[1737967590050,1.78173229,98889.0,98888.0,0.00079307]
[1737967590300,1.5347,98889.0,98888.0,0.00079307]
[1737967590599,1.5347,98889.0,98888.0,0.30247907]
[1737967590600,1.04172,98889.0,98888.0,0.30247907]
[1737967590833,1.04172,98889.0,98888.0,0.31286436]
[1737967591085,1.04272,98889.0,98888.0,0.39982636]
[1737967591598,1.04072,98889.0,98888.0,0.39982636]
[1737967591871,1.04272,98889.0,98888.0,0.39982636]
[1737967592204,1.04172,98889.0,98888.0,0.39982636]
[1737967592380,1.04172,98889.0,98888.0,0.40382636]
[1737967592650,1.03972,98889.0,98888.0,0.40997742]
[1737967592896,1.03972,98889.0,98888.0,0.31263013]
[1737967593164,1.03972,98889.0,98888.0,0.33011013]
[1737967593433,1.03972,98889.0,98888.0,0.32811013]
[1737967593862,1.03972,98889.0,98888.0,0.32611013]
[1737967594264,1.03972,98889.0,98888.0,0.42345742]
[1737967595010,0.50562,98889.0,98888.0,0.42845742]
[1737967595216,0.50562,98889.0,98888.0,0.46745742]
[1737967595818,0.485395,98889.0,98888.0,0.70233261]
[1737967596035,0.485395,98889.0,98888.0,0.42393861]
[1737967596240,0.485395,98889.0,98888.0,0.18059132]
[1737967596442,0.485395,98889.0,98888.0,0.17959132]
[1737967596563,0.485395,98889.0,98888.0,0.17559132]
[1737967596761,0.485395,98889.0,98888.0,0.16311132]
[1737967596963,0.486395,98889.0,98888.0,0.18359132]
[1737967597245,0.486395,98889.0,98888.0,0.42993861]
[1737967597650,0.486395,98889.0,98888.0,0.43093861]
[1737967598059,0.486395,98889.0,98888.0,0.42993861]
[1737967598262,0.485395,98889.0,98888.0,0.42293861]
[1737967598465,0.485395,98889.0,98888.0,0.42593861]
[1737967598682,0.485395,98889.0,98888.0,0.32659132]
[1737967598896,0.485395,98889.0,98888.0,0.31311132]
[1737967599117,1.22108,98889.0,98888.0,0.00327426]
[1737967599325,1.29678,98889.0,98888.0,0.00327426]
[1737967599799,1.29678,98889.0,98888.0,0.00227426]
[1737967599800,1.71492729,98889.0,98888.0,0.00227426]
[1737967600009,0.202249,98888.0,98865.0,0.01348]
[1737967600225,0.15172,98866.0,98865.0,0.01348]
[1737967600450,0.151728,98861.0,98860.0,0.0009854]
[1737967600677,0.151729,98860.0,98845.0,0.00029736]
[1737967600866,0.151729,98860.0,98850.0,0.151744]
[1737967600867,0.73447129,98860.0,98850.0,0.151744]
[1737967601084,0.73447129,98860.0,98848.0,0.151748]
[1737967601295,0.58274229,98860.0,98851.0,0.202323]
[1737967601502,0.58274229,98860.0,98845.0,0.00029736]
[1737967601503,0.73447129,98860.0,98845.0,0.00029736]
[1737967601937,0.277351,98846.0,98845.0,0.00029736]
[1737967602147,1.71499329,98846.0,98845.0,0.00044605]
[1737967603423,1.7638051,98846.0,98845.0,0.00244605]
[1737967603684,1.66645781,98846.0,98845.0,0.00244605]
[1737967603889,1.66645781,98846.0,98845.0,0.00044605]
[1737967604315,1.63743609,98846.0,98845.0,0.00044605]
[1737967604534,1.63943609,98846.0,98845.0,0.00044605]
[1737967604738,1.48668509,98846.0,98845.0,0.00044605]
[1737967604942,1.63843609,98846.0,98845.0,0.00044605]
[1737967605153,1.64143609,98846.0,98845.0,0.00044605]
[1737967605359,1.48968509,98846.0,98845.0,0.00044605]
[1737967605558,1.48568509,98846.0,98845.0,0.00044605]
[1737967605759,1.48768509,98846.0,98845.0,0.00044605]
[1737967606203,1.48568509,98846.0,98845.0,0.15219805]
[1737967606426,1.48768509,98846.0,98845.0,0.00044605]
[1737967606629,1.63843609,98846.0,98845.0,0.00044605]
[1737967606842,1.619646,98846.0,98845.0,0.00044605]
[1737967607044,1.467895,98846.0,98845.0,0.00044605]
[1737967607261,1.620646,98846.0,98845.0,0.00044605]
[1737967607469,2.57299329,98846.0,98845.0,0.00044605]
[1737967607706,2.56999329,98846.0,98845.0,0.00044605]
[1737967608046,2.60001454,98846.0,98845.0,0.00044605]
[1737967609412,2.60201454,98846.0,98845.0,0.00044605]
[1737967609553,2.62077729,98846.0,98845.0,0.00044605]
[1737967609752,2.46902629,98846.0,98845.0,0.00044605]
[1737967609977,2.372679,98846.0,98845.0,0.00044605]
[1737967610178,2.372679,98846.0,98845.0,0.15219805]
[1737967610402,2.296979,98846.0,98845.0,0.15219805]
[1737967610603,2.39332629,98846.0,98845.0,0.00044605]
[1737967610815,2.54407729,98846.0,98845.0,0.00044605]
[1737967611165,2.5094759,98846.0,98845.0,0.00044605]
[1737967611344,1.6494759,98846.0,98845.0,0.00044605]
[1737967611757,1.64429329,98846.0,98845.0,0.00044605]
[1737967611960,1.64129329,98846.0,98845.0,0.00044605]
[1737967612371,1.64329329,98846.0,98845.0,0.00044605]
[1737967612570,1.64129329,98846.0,98845.0,0.00044605]
[1737967613331,1.63929329,98846.0,98845.0,0.00044605]
[1737967613532,1.68805352,98846.0,98845.0,0.00044605]
[1737967613732,1.68905352,98846.0,98845.0,0.00044605]
[1737967613969,1.69005352,98846.0,98845.0,0.00044605]
[1737967614128,1.68905352,98846.0,98845.0,0.00044605]
[1737967614531,1.69105352,98846.0,98845.0,0.00044605]
[1737967615895,2.64945352,98846.0,98845.0,0.00044605]
[1737967616236,0.15178,98827.0,98811.0,0.404811]
[1737967616496,0.5341,98826.0,98810.0,0.22491777]
[1737967616693,1.019495,98826.0,98825.0,0.151783]
[1737967619773,1.019495,98826.0,98825.0,0.301783]
[1737967619978,1.019495,98826.0,98825.0,0.40941652]
[1737967620181,0.485395,98826.0,98825.0,0.61748652]
[1737967620589,0.45084537,98826.0,98825.0,0.63748652]
[1737967620795,0.45084537,98826.0,98825.0,0.64748652]
[1737967621169,0.34965537,98826.0,98825.0,0.66739429]
[1737967621360,0.18080039,98826.0,98825.0,0.66739429]
[1737967621548,0.00029758,98859.0,98853.0,0.02]
[1737967621750,0.301172,98894.0,98877.0,0.301703]
[1737967621947,0.0804,98896.0,98892.0,0.15168]
[1737967621948,0.301172,98893.0,98892.0,0.15168]
[1737967622723,0.301172,98893.0,98892.0,0.30168]
[1737967624148,0.301172,98893.0,98892.0,0.002]
[1737967624315,0.301172,98893.0,98892.0,0.15368]
[1737967625358,0.301172,98893.0,98892.0,0.15316119]
[1737967625792,0.301172,98893.0,98892.0,0.40050848]
[1737967626852,0.302172,98893.0,98892.0,0.39902729]
[1737967627291,0.303172,98893.0,98892.0,0.30168]
[1737967627497,0.303172,98893.0,98892.0,0.31165816]
[1737967628011,0.301172,98893.0,98892.0,0.31165816]
[1737967628415,0.301172,98893.0,98892.0,0.31265816]
[1737967629028,0.00014872,98895.0,98894.0,0.301677]
[1737967631567,0.00014872,98895.0,98894.0,0.39902429]
[1737967632067,0.00029042,98895.0,98894.0,0.39902429]
[1737967633045,0.00029042,98895.0,98894.0,0.301677]
[1737967633233,0.00029042,98895.0,98894.0,0.315077]
[1737967633569,0.00029042,98895.0,98894.0,0.0134]
[1737967633884,0.00029042,98895.0,98894.0,0.001]
[1737967633885,0.30146242,98895.0,98894.0,0.001]
[1737967634095,0.30146242,98895.0,98894.0,0.152677]
[1737967634293,0.30146242,98895.0,98894.0,0.001]
[1737967634498,0.151684,98890.0,98875.0,0.202275]
[1737967634705,0.151689,98887.0,98860.0,0.22491777]
[1737967634901,0.0475,98893.0,98863.0,0.2023]
[1737967635104,0.202257,98884.0,98875.0,0.151705]
[1737967635328,0.151695,98883.0,98876.0,0.151704]
[1737967635527,0.202244,98890.0,98875.0,0.202275]
[1737967635706,0.09734729,98889.0,98874.0,0.0134]
[1737967635909,0.151692,98885.0,98879.0,0.151699]
[1737967636106,0.151688,98888.0,98881.0,0.151697]
[1737967636330,0.202249,98888.0,98875.0,0.202275]
[1737967636528,0.202249,98888.0,98874.0,0.0134]
[1737967636733,0.151691,98886.0,98879.0,0.1517]
[1737967636938,0.202249,98888.0,98874.0,0.0134]
[1737967637134,0.09734729,98889.0,98874.0,0.0134]
[1737967637343,0.151708,98874.0,98873.0,0.0009845]
[1737967637547,0.301172,98874.0,98873.0,0.0009845]
[1737967637823,0.301172,98874.0,98869.0,0.0134]
[1737967638003,0.301172,98874.0,98868.0,0.354004]
[1737967638213,0.301172,98874.0,98873.0,0.151709]
[1737967638788,0.303172,98874.0,98873.0,0.151709]
[1737967640066,0.303172,98874.0,98870.0,0.15]
[1737967640247,0.301172,98874.0,98873.0,0.151709]
[1737967640477,0.302172,98874.0,98873.0,0.151709]
[1737967641032,0.302172,98874.0,98873.0,0.152709]
[1737967641237,0.301172,98874.0,98873.0,0.151709]
[1737967641447,0.301172,98874.0,98873.0,0.301709]
[1737967641689,0.302172,98874.0,98873.0,0.301709]
[1737967641871,0.301172,98874.0,98873.0,0.301709]
[1737967642458,0.02024072,98907.0,98873.0,0.301709]
[1737967642459,0.301172,98889.0,98888.0,0.301686]
[1737967643064,0.301172,98889.0,98888.0,0.39903329]
[1737967643896,0.301172,98889.0,98888.0,0.40203329]
[1737967644127,0.301172,98889.0,98888.0,0.39903329]
[1737967644329,0.00029042,98895.0,98894.0,0.301677]
[1737967644532,0.00029042,98895.0,98894.0,0.39902429]
[1737967646667,0.00029042,98895.0,98894.0,0.40302429]
[1737967647022,0.00029042,98895.0,98894.0,0.40402429]
[1737967647422,0.00029042,98895.0,98894.0,0.40002429]
[1737967647625,0.00029042,98895.0,98894.0,0.39902429]
[1737967647830,0.0756,98917.0,98895.0,0.15]
[1737967648041,0.00063712,98913.0,98912.0,0.151649]
[1737967648939,0.00058114,98913.0,98912.0,0.151649]
[1737967649150,0.00058114,98913.0,98912.0,0.301649]
[1737967649546,0.00058114,98913.0,98912.0,0.30113019]
[1737967649963,0.00058114,98913.0,98912.0,0.31119879]
[1737967650372,0.00358114,98913.0,98912.0,0.30113019]
[1737967650792,0.00258114,98913.0,98912.0,0.30113019]
[1737967652190,0.00358114,98913.0,98912.0,0.30113019]
[1737967652391,0.00158114,98913.0,98912.0,0.30113019]
[1737967652811,0.00058114,98913.0,98912.0,0.30113019]
[1737967653020,0.00058114,98913.0,98912.0,0.39847748]
[1737967653246,0.00158114,98913.0,98912.0,0.39847748]
[1737967653652,0.00158114,98913.0,98912.0,0.42147748]
[1737967653856,0.00158114,98913.0,98912.0,0.67660128]
[1737967654077,0.00058114,98913.0,98912.0,0.69660128]
[1737967654480,0.00058114,98913.0,98912.0,0.57841128]
[1737967654660,0.00058114,98913.0,98912.0,0.54433728]
[1737967655563,0.00058114,98913.0,98912.0,0.54633728]
[1737967655755,0.0001416,98932.0,98931.0,0.30162]
[1737967655964,0.00029017,98932.0,98931.0,0.41232729]
[1737967657013,0.00218315,98932.0,98931.0,0.41232729]
[1737967657421,0.00018315,98932.0,98931.0,0.41232729]
[1737967657767,0.00018315,98932.0,98931.0,0.42267307]
[1737967658587,0.00018315,98932.0,98931.0,0.44567307]
[1737967658797,1.5e-07,98932.0,98931.0,0.44567307]
[1737967659013,0.2158416,98958.0,98942.0,0.301603]
[1737967659014,0.0001416,98958.0,98942.0,0.301603]
[1737967659225,0.0001416,98958.0,98945.0,0.15]
[1737967659432,0.0001416,98958.0,98957.0,0.30158]
[1737967659651,0.0001416,98958.0,98957.0,1.88906273]
[1737967659866,0.0001416,98958.0,98957.0,1.35727373]
[1737967660074,0.0001416,98958.0,98957.0,1.34234542]
[1737967660252,0.0001416,98958.0,98957.0,1.31103173]
[1737967660697,0.0001416,98958.0,98957.0,1.33269321]
[1737967660912,6e-07,98958.0,98957.0,1.34879848]
[1737967661123,6e-07,98958.0,98957.0,1.00272748]
[1737967661960,6e-07,98958.0,98957.0,1.00172748]
[1737967662378,6e-07,98958.0,98957.0,1.00472748]
[1737967662570,6e-07,98958.0,98957.0,0.99872748]
[1737967663057,0.0010006,98958.0,98957.0,1.00272748]
[1737967663259,6e-07,98958.0,98957.0,0.99872748]
[1737967663636,0.0010006,98958.0,98957.0,1.00572748]
[1737967663843,6e-07,98958.0,98957.0,0.99572748]
[1737967664020,6e-07,98958.0,98957.0,0.97972748]
[1737967664226,0.0010006,98958.0,98957.0,0.33200527]
[1737967664442,0.0010006,98958.0,98957.0,0.32500527]
[1737967665322,0.0010006,98958.0,98957.0,0.32800527]
[1737967665728,0.0020006,98958.0,98957.0,0.42935256]
[1737967666211,6e-07,98958.0,98957.0,0.42435256]
[1737967666402,6e-07,98958.0,98957.0,0.42935256]
[1737967666546,6e-07,98958.0,98957.0,0.42735256]
[1737967666773,6e-07,98958.0,98957.0,0.42235256]
[1737967666979,0.0010006,98958.0,98957.0,0.43135256]
[1737967667412,6e-07,98958.0,98957.0,0.42435256]
[1737967667626,6e-07,98958.0,98957.0,0.42935256]
[1737967668697,6e-07,98958.0,98957.0,1.17935256]
[1737967668907,6e-07,98958.0,98957.0,1.17235256]
[1737967669277,6e-07,98958.0,98957.0,1.17935256]
[1737967669454,6e-07,98958.0,98957.0,1.17435256]
[1737967670033,6e-07,98958.0,98957.0,1.744386]
[1737967670281,6e-07,98958.0,98957.0,1.742386]
[1737967670492,6e-07,98958.0,98957.0,1.743386]
[1737967670899,6e-07,98958.0,98957.0,1.739386]
[1737967672010,6e-07,98958.0,98957.0,1.73786719]
[1737967672243,6e-07,98958.0,98957.0,1.74486719]
[1737967672649,6e-07,98958.0,98957.0,1.73986719]
[1737967672791,0.0010006,98958.0,98957.0,1.74486719]
[1737967672994,0.0010006,98958.0,98957.0,1.33028115]
[1737967673642,0.0010006,98958.0,98957.0,1.18183375]
[1737967673840,0.0010006,98958.0,98957.0,1.16851375]
[1737967674051,0.0010006,98958.0,98957.0,1.08448646]
[1737967674206,0.0480006,98958.0,98957.0,1.08448646]
[1737967674428,0.0480006,98958.0,98957.0,0.77010527]
[1737967674633,0.0480006,98958.0,98957.0,0.91158]
[1737967675081,0.0480006,98958.0,98957.0,0.90858]
[1737967675276,0.0480006,98958.0,98957.0,0.91158]
[1737967675482,0.0470006,98958.0,98957.0,0.753]
[1737967675743,0.0470006,98958.0,98957.0,0.758]
[1737967675919,0.0470006,98958.0,98957.0,0.753]
[1737967676088,0.0470006,98958.0,98957.0,0.75]
[1737967676641,0.0470006,98958.0,98957.0,0.751]
[1737967676844,0.0490006,98958.0,98957.0,0.75]
[1737967677454,0.0490006,98958.0,98957.0,0.90158]
[1737967677658,0.0490006,98958.0,98957.0,0.75]
[1737967678073,0.59012689,98958.0,98957.0,0.75]
[1737967678849,0.59112689,98958.0,98957.0,0.75]
[1737967679067,0.58912689,98958.0,98957.0,0.75]
[1737967679235,0.59112689,98958.0,98957.0,0.75]
[1737967679480,0.58812689,98958.0,98957.0,0.75]
[1737967679682,0.59012689,98958.0,98957.0,0.75]
[1737967679883,0.59512689,98958.0,98957.0,0.75]
[1737967680474,0.59512689,98958.0,98957.0,0.75029715]
[1737967681132,0.59512689,98958.0,98957.0,0.70029715]
[1737967681306,0.91592689,98958.0,98957.0,0.57219715]
[1737967682317,0.94892689,98958.0,98957.0,0.57219715]
[1737967682560,0.94892689,98958.0,98957.0,0.43978286]
[1737967682970,2.36967418,98958.0,98957.0,0.21062786]
[1737967683176,0.151639,98919.0,98918.0,0.0142752]
[1737967683414,0.688139,98919.0,98918.0,0.01442377]
[1737967683555,0.688139,98919.0,98918.0,0.01342857]
[1737967683556,1.193609,98919.0,98918.0,0.01342857]
[1737967683763,1.29095629,98919.0,98918.0,0.00014857]
[1737967684978,1.13931729,98919.0,98918.0,0.00014857]
[1737967685382,1.29095629,98919.0,98918.0,0.00014857]
[1737967685977,1.193609,98919.0,98918.0,0.00014857]
[1737967686179,1.04397,98919.0,98918.0,0.15178857]
[1737967686414,1.04397,98919.0,98918.0,0.15278857]
[1737967686819,1.04397,98919.0,98918.0,0.00114857]
[1737967687016,1.04197,98919.0,98918.0,0.00014857]
[1737967687221,1.04397,98919.0,98918.0,0.00014857]
[1737967687398,1.04397,98919.0,98918.0,0.15178857]
[1737967687615,1.04197,98919.0,98918.0,0.00014857]
[1737967687809,1.04197,98919.0,98918.0,0.15178857]
[1737967688011,1.04197,98919.0,98918.0,0.00014857]
[1737967688785,1.04297,98919.0,98918.0,0.00014857]
[1737967688988,1.194609,98919.0,98918.0,0.00014857]
[1737967689121,1.04197,98919.0,98918.0,0.00014857]
[1737967689328,1.04297,98919.0,98918.0,0.15178857]